Cogmind - Beta 9.1 @@@ ROGUE MODE // 2019.11.03 @ 12:17:24 Player: MrPainting Result: Destroyed by S-10 Pest with Light Assault Rifle Performance ------------- Evolutions (1) 500 Regions Visited (3) 600 Robots Destroyed (26) 130 Value Destroyed (618) 618 Prototype IDs (2) 40 Alien Tech Used (0) 0 Bonus (0) 0 TOTAL SCORE: 1888 Bonus ------- None Cogmind --------- Core Integrity 0/400 Matter 300/300 Energy 277/280 System Corruption 5% Temperature Cool (1) Location -9/Materials Parts ------- Power (1) Heavy Ion Engine Propulsion (3) Light Treads Advanced Treads Hover Unit Utility (3) Medium Storage Unit Hacking Suite Weapon (2) Assault Rifle Katana Inventory (8) Light Ion Engine Light Nuclear Core Hover Unit Compact Matter Pod (150) Advanced Targeting Computer Hardened Light Armor Plating High-powered Tractor Beam Peak State ------------ Power Heavy Ion Engine Propulsion Light Treads Advanced Treads Hover Unit Utility Medium Storage Unit Hacking Suite Weapon Assault Rifle Katana Inventory Light Ion Engine Light Nuclear Core Hover Unit Compact Matter Pod Advanced Targeting Computer Hardened Light Armor Plating High-powered Tractor Beam [Rating: 17] Favorites ----------- Power Ion Engine Engine Ion Engine Propulsion Light Treads Treads Light Treads Hover Unit Hover Unit Utility Medium Storage Unit Device Heat Sink Storage Medium Storage Unit Processor Melee Analysis Suite Hackware Hacking Suite Protection Hardened Light Armor Plating Weapon EM Pulse Gun Energy Gun EM Pulse Gun Ballistic Gun Assault Rifle Slashing Weapon Katana Build | -11 -10 -10 -9 ------- Run | Scr Mat Min Mat Slots Evolved 2 | . . . 2 Power . | . . . . Propulsion 1 | . . . 1 Utility 1 | . . . 1 Weapon . | . . . . Parts Attached 26 | 7 3 5 11 Power 2 | 1 . . 1 Engine 2 | 1 . . 1 Core . | . . . . Reactor . | . . . . Propulsion 10 | 2 . 3 5 Treads 5 | 2 . . 3 Leg . | . . . . Wheel . | . . . . Hover 5 | . . 3 2 Flight . | . . . . Utility 7 | 1 2 1 3 Device 1 | . 1 . . Storage 3 | 1 1 1 . Processor 1 | . . . 1 Hackware 1 | . . . 1 Protection 1 | . . . 1 Artifact . | . . . . Weapon 7 | 3 1 1 2 Energy Gun 4 | 3 . . 1 Energy Cannon . | . . . . Ballistic Gun 2 | . 1 . 1 Ballistic Cannon . | . . . . Launcher . | . . . . Special Weapon . | . . . . Impact Weapon . | . . . . Slashing Weapon 1 | . . 1 . Piercing Weapon . | . . . . Special Melee Weapon . | . . . . Unidentified Prototypes 2 | . . . 2 Parts Lost 5 | . . 1 4 Power 1 | . . . 1 Propulsion 3 | . . 1 2 Utility 1 | . . . 1 Weapon . | . . . . Highest Loss Streak 2 | . . 1 2 Average Slot Usage (%) 73 | . 87 74 63 Engine 11 | . 14 14 9 Treads 15 | . 28 6 11 Hover 6 | . . 17 7 Device 2 | . 6 2 . Storage 11 | . 9 14 11 Hackware 3 | . . . 7 Energy Gun 8 | . 21 5 . Ballistic Gun 5 | . 6 5 4 Slashing Weapon 6 | . . 8 11 Naked Turns . | . . . . Heaviest Build 20 | 13 18 18 20 Greatest Support 42 | 40 40 40 42 Greatest Overweight (x) 4 | 1 . 1 4 Average Overweight (x) . | . . . 1 Largest Inventory Capacity 8 | 6 8 8 8 Average Capacity 7 | 4 6 8 8 Most Carried 8 | . 4 8 8 Average Carried 4 | . 1 6 7 Final Capacity 8 | 6 8 8 8 Final Carried 7 | . 3 7 7 Class Distribution -------------------- 100% | Mutant Dominant Class ---------------- Mutant | -10/Materials Mutant | -10/Mines Mutant | -9/Materials Resources | -11 -10 -10 -9 ----------- Run | Scr Mat Min Mat Matter Collected 499 | 230 100 50 119 Remotely . | . . . . Salvage Created 906 | . 360 24 522 Parts 68 | . 32 . 36 Haulers Intercepted 2 | . . . 2 Recyclers Shooed 1 | . 1 . . Parts Field Recycled . | . . . . Retrieved Matter . | . . . . Parts Self-Destructed . | . . . . Prevented . | . . . . Kills | -11 -10 -10 -9 ------- Run | Scr Mat Min Mat Combat Hostiles Destroyed 16 | . 8 . 8 Melee 8 | . . . 8 Guns 8 | . 8 . . Classes Destroyed 8 | . 4 1 3 Worker 1 | . . 1 . Hauler 2 | . . . 2 Recycler 1 | . . . 1 Operator 2 | . 1 . 1 Watcher 4 | . 3 . 1 Swarmer 5 | . 3 . 2 Grunt 7 | . 5 . 2 Sentry 4 | . . . 4 Best Kill Streak 6 | . 4 1 6 Combat Bots Only 3 | . 3 . 3 Max Kills in Single Turn 2 | . 2 1 1 Gunslinging 1 | . 1 . . Exploded . | . . . . Melee 1 | . . . 1 Uniques/NPCs Destroyed . | . . . . Combat | -11 -10 -10 -9 -------- Run | Scr Mat Min Mat Damage Taken 1101 | . 215 136 750 Core 487 | . 41 44 402 Absorbed by Shields . | . . . . Core Remaining (%) 83 | 100 . 66 . Volleys Fired 28 | 1 24 . 3 Largest 2 | 2 2 . 1 Hottest 80 | 80 80 . 20 Shots Fired 53 | 2 48 . 3 Gun 53 | 2 48 . 3 Cannon . | . . . . Launcher . | . . . . Special . | . . . . Kinetic 13 | . 10 . 3 Thermal . | . . . . Explosive . | . . . . Electromagnetic 40 | 2 38 . . Robot Hit Streak 5 | . 5 . 2 Robot Miss Streak 5 | . 5 . . Penetration Max . | . . . . Secondary Targets 2 | . 2 . . Max Gunslinging Chain 1 | . 1 . . Shots Hit Robots 58 | . 27 3 28 Core Hits 30 | . 16 1 13 Critical Hits . | . . . . Critical Kills . | . . . . Critical Parts Destroyed . | . . . . Melee Attacks 35 | . . 3 32 Impact . | . . . . Slashing 35 | . . 3 32 Piercing . | . . . . Sneak Attacks 5 | . . 1 4 Combat Hostiles . | . . . . Follow-up Attacks . | . . . . Damage Inflicted 1633 | . 352 175 1106 Guns 335 | . 309 . 26 Cannons . | . . . . Explosions 43 | . 43 . . Melee 1255 | . . 175 1080 Ramming . | . . . . Kinetic 85 | . 59 . 26 Thermal 43 | . 43 . . Explosive . | . . . . Electromagnetic 250 | . 250 . . Impact . | . . . . Slashing 1255 | . . 175 1080 Piercing . | . . . . Highest Corruption 5 | . . . 5 Average Corruption 4 | . . . 4 Corruption Purged . | . . . . Effects 11 | . . . 11 Message Errors 6 | . . . 6 Matter Fused 2 | . . . 2 Energy Discharges 1 | . . . 1 Data Loss (major) 1 | . . . 1 Targeting Errors 1 | . . . 1 Overload Shots . | . . . . Overflow Damage 162 | . . 95 67 Projectiles . | . . . . Explosions . | . . . . Melee 162 | . . 95 67 Knockbacks . | . . . . Impact . | . . . . Kinetic . | . . . . Secondary . | . . . . Self-Inflicted Damage . | . . . . Shots . | . . . . Rammed . | . . . . Targets Rammed . | . . . . Kicked . | . . . . Crushed . | . . . . Highest Temperature 153 | 18 153 . . Average Temperature 61 | 12 64 . . Received Heat Transfer 312 | . 63 60 189 Siege Activations . | . . . . Robots Corrupted . | . . . . Combat Hostiles . | . . . . Parts Fried 1 | . 1 . . Impact Corruptions . | . . . . Robots Melted . | . . . . Combat Hostiles . | . . . . Parts Melted . | . . . . Heat Transferred 50 | . 50 . . Parts Sabotaged . | . . . . Parts Stolen . | . . . . Parts Stripped . | . . . . Power Chain Reactions 1 | . 1 . . Missiles Intercepted . | . . . . Alert | -11 -10 -10 -9 ------- Run | Scr Mat Min Mat Peak Influence 296 | . 296 44 229 Average Influence 92 | . 136 39 93 Maximum Alert Level 1 | . 1 . 1 Low Security (%) 91 | . . . . Level 1 8 | . . . . Level 2 . | . . . . Level 3 . | . . . . Level 4 . | . . . . Level 5 . | . . . . High Security . | . . . . Max Security . | . . . . Squads Dispatched 3 | . 2 . 1 Investigation . | . . . . Extermination . | . . . . Reinforcement 3 | . 2 . 1 Assault . | . . . . Garrison . | . . . . Intercept . | . . . . Construction Impeded . | . . . . Haulers Reinforced . | . . . . Stealth | -11 -10 -10 -9 --------- Run | Scr Mat Min Mat Distress Signals 4 | . 3 . 1 Communications Jammed . | . . . . Distress Signals . | . . . . Times Spotted 34 | . 13 2 19 Peak Tracking Total 4 | . 4 2 4 Tactical Retreats . | . . . . Traps | -11 -10 -10 -9 ------- Run | Scr Mat Min Mat Traps Triggered 4 | . . 1 3 Indirectly . | . . . . Trap Hack Attempts . | . . . . Triggered . | . . . . Disarmed . | . . . . Reprogrammed . | . . . . Reused . | . . . . Traps Extracted . | . . . . Installed . | . . . . Triggered . | . . . . Machines | -11 -10 -10 -9 ---------- Run | Scr Mat Min Mat Machines Disabled 3 | . 3 . . Max in Single Turn 1 | . 1 . . Machines Sabotaged . | . . . . Garrisons Compromised . | . . . . Overloaded Fab Kills . | . . . . Fab Network Shutdowns . | . . . . Hacking | -11 -10 -10 -9 --------- Run | Scr Mat Min Mat Machines Accessed 1 | . . 1 . Terminals . | . . . . Fabricators . | . . . . Repair Stations . | . . . . Recycling Units . | . . . . Scanalyzers . | . . . . Garrison Access . | . . . . Total Hacks 1 | . . 1 . Successful 1 | . . 1 . Failed . | . . . . Catastrophic . | . . . . Database Lockouts . | . . . . Manual . | . . . . Terminals . | . . . . Fabricators . | . . . . Repair Stations . | . . . . Recycling Units . | . . . . Scanalyzers . | . . . . Garrison Access . | . . . . Terminal Hacks 1 | . . 1 . Open Door 1 | . . 1 . Fabricator Hacks . | . . . . Repair Station Hacks . | . . . . Recycling Unit Hacks . | . . . . Scanalyzer . | . . . . Garrison Access Hacks . | . . . . Unauthorized Hacks . | . . . . Terminals . | . . . . Fabricators . | . . . . Repair Stations . | . . . . Recycling Units . | . . . . Scanalyzers . | . . . . Garrison Access . | . . . . Data Cores Recovered . | . . . . Used . | . . . . Hacking Detections . | . . . . Full Trace Events . | . . . . Feedback Events . | . . . . Feedback Blocked . | . . . . Robot Schematics Acquired . | . . . . Robots Built . | . . . . Matter . | . . . . Time . | . . . . Total Robot Build Rating . | . . . . Part Schematics Acquired . | . . . . Parts Built . | . . . . Matter . | . . . . Time . | . . . . Total Part Build Rating . | . . . . Parts Repaired . | . . . . Time . | . . . . Parts Recycled . | . . . . Recycled Matter . | . . . . Retrieved Matter . | . . . . Retrieved Components . | . . . . Parts Scanalyzed . | . . . . Part Schematics Acquired . | . . . . Parts Damaged . | . . . . Bothacking | -11 -10 -10 -9 ------------ Run | Scr Mat Min Mat Used RIF Installer . | . . . . Robots Hacked . | . . . . Non-combat . | . . . . Combat . | . . . . Robot Hacks Applied . | . . . . Relay Couplers Released . | . . . . Robots Rewired . | . . . . Allies Hacked . | . . . . Hacks Repelled . | . . . . Allies | -11 -10 -10 -9 -------- Run | Scr Mat Min Mat Total Allies . | . . . . Largest Group . | . . . . Highest-Rated Group . | . . . . Highest-Rated Ally . | . . . . Total Orders . | . . . . Ally Attacks . | . . . . Total Damage . | . . . . Kills . | . . . . Allies Corrupted . | . . . . Allies Melted . | . . . . Intel | -11 -10 -10 -9 ------- Run | Scr Mat Min Mat Robot Analysis Total . | . . . . Derelict Logs Recovered 1 | . . 1 . Drone Launches . | . . . . Drone Recoveries . | . . . . Exploration | -11 -10 -10 -9 ------------- Run | Scr Mat Min Mat Turns Passed 1412 | 71 440 263 638 Spaces Moved 911 | 52 224 321 314 Core 52 | 24 . . 28 Treads 396 | 28 224 58 86 Legs . | . . . . Wheels . | . . . . Hover 463 | . . 263 200 Flight . | . . . . Fastest Speed 50 | 50 160 56 56 Average Speed 128 | 111 160 74 163 Slowest Speed 280 | 160 160 160 280 Overloaded Moves . | . . . . Propulsion Burnouts . | . . . . Robots Hopped . | . . . . Cave-ins Triggered . | . . . . Exploration Rate (%) 37 | 4 44 69 33 Regions Visited 3 Branch Regions 1 Pre-discovered Areas . | . . . . Known Exits Taken . | . . . . Unknown Exits Taken 3 | 1 1 1 . Scrap Searched 1 | . . 1 . Spaces Dug . | . . . . Terrain Destroyed 3 | . 3 . . Melee . | . . . . Projectile . | . . . . AOE 3 | . 3 . . Actions | -11 -10 -10 -9 --------- Run | Scr Mat Min Mat Total 1047 | 60 258 340 389 Wait 19 | . . . 19 Move 908 | 51 223 320 314 Hop . | . . . . Pick Up 20 | . 6 6 8 Fast Attach 10 | 7 . 1 2 Attach 12 | . 2 2 8 Detach 1 | . . 1 . Swap 4 | . 1 2 1 Drop 10 | 1 2 5 2 Fire 28 | 1 24 . 3 Melee 35 | . . 3 32 Ram . | . . . . Kick . | . . . . Crush . | . . . . Escape Stasis . | . . . . Rewire . | . . . . Trap . | . . . . Miscellaneous . | . . . . Route ------- -11/Scrapyard -10/Materials (discovered 2 exits: *Min x2) -10/Mines -9/Materials (discovered 2 exits: Mat / [*Min]) History --------- Turn | Location | Event 11 | -11/Scrapyard | Discovered new exit (range 14) 72 | -11/Scrapyard | Entered Materials 243 | -10/Materials | Discovered new exit (range 16) 332 | -10/Materials | Build established: Mutant 489 | -10/Materials | Discovered new exit (range 4) 512 | -10/Materials | Entered Mines 523 | -10/Mines | Met a Derelict who couldn't figure out how to use a Trap Extractor 725 | -10/Mines | Assembled infested the area 748 | -10/Mines | Learned 4 Materials zone layouts 766 | -10/Mines | Discovered new exit (range 5) 775 | -10/Mines | Entered Materials 775 | -9/Materials | Evolved 2 slots: Propulsion x1, Utility x1 776 | -9/Materials | Identified exit to Materials 972 | -9/Materials | Core integrity fell below 50% 1011 | -9/Materials | Core integrity fell below 20% 1281 | -9/Materials | Discovered new exit (range 8) 1413 | -9/Materials | Destroyed by S-10 Pest with Light Assault Rifle Last Messages --------------- 01196_ R-06 Scavenger collects Visual Processing Unit. 01198_ E5<|Y>WEWTYQWP%DVZVE0BEV9> RVRD=C1 01199_ R-06 Scavenger collects Lgt. Ion Engine. 01203_ R-06 Scavenger collects Signal Interpreter. 01211_ Acquired 3 matter. 01222_ System corrupted: Matter fused (-8). 01235_ K-01 Serf collects debris. 01253_ System corrupted: Assault Rifle targeting data glitched. 01281_ EXIT=FOUND 01284_ Y-45 Defender destroyed. 01285_ 6A9Z8AMEHVZTZHR9IP,QMPL8PAS Map ----- +----------------------------------------------------+ | #### #????# """ #?????###########???????????# # | | ??##+#####? """ #???????????????????????????# # | | ??# ! #??? #######????????????????????###+## | | ??# ######+## ! #????????????????????# | | ??# = # % #????????????????????# | | ??# # +?????????????????#### | | ??# + #?????????????????# # | | ??#! = # ##### #?????????????????# ## | | ??######## #???## ##?????????????????# ## | | ????????# ???# ######?????????????# ####### | | ????????# ""#?# #?????????????# #?????? | | ????????# !!#?# #????????????########?? | | ????????# < ""#?# #????????????# #?? | | ????????# !!#?## ### #?????????????????????? | | ????????# ""#?##+### #?????????????????????? | | ????????# "#?# ## #?????????????????????? | | ????????## ###??# T ## #?????????????????????? | | ?????????# ###### ## #?????????????????????? | | ?????????+^ # ## #?????????????????????? | | ?????????# ! # = ## #?????????????????????? | | ?????????#^ # ## #?????????????????????? | | ?????????# "" # ## #??????"??????????????? | | ?????????# Y" ##+### ##?? """?????????????? | | ?????????# "" # """ #??????????? | | ?????????# + #???????????? | | ?????????# @s # """ #???????????? | | ?????????######+####+#####s #????????????????????? | | ???????????#= T # ??? s#????????????????????? | | ???????????# # """ ?? s#????????????????????? | | ???????????# """ # """ ?# #????????????????????? | | ???????????# """ # """ #? #????????????????????? | | ???????????# """ # #? #????????????????????? | | ???????????# # / ! #? #????????????????????? | | ???????????#############?#??#????????????????????? | | ?????????????????????????????????????????????????? | | ?????????????????????????????????????????????????? | | ?????????????????????????????????????????????????? | | ?????????????????????????????????????????????????? | | T" # ## ????????????????????????? # #### | | # ## ????????????????????????? # # " | | + ######?????????????????????????##### # "" | | # ????????????????????????? # "" | | # ????????????????????????? + | | #### ????????????????????????? # "" | | #####+## ""????????????????????????? ## # "" | | # ""????????????????????????? ## # "" | | # ""????????????????????????? ## # | | # ????????????????????????? ## #### | | # ?????????????????????????##### | | "" """ + ?????????????????????????????# < | +----------------------------------------------------+ Best States ------------- Heat Dissipation 35 Energy Generation 14 Energy Capacity 280 Matter Stores 300 Matter Capacity 300 Sight Range 16 Terrain Scan Density 10 Evasion (%) 53 Melee Accuracy 5 Recoil Reduction 2 Offensive Hacking 10 Item Schematics ----------------- None Robot Schematics ------------------ None Fabricated ------------ Nothing Alien Tech Used ----------------- None Achievements -------------- None Challenges ------------ None Game ------ Seed AntimatterLatentDrive Manual? 0 Play Time 00:10:58 Cumulative 101.9 hours Start 2019.11.03 @ 12:07:34 End 2019.11.03 @ 12:17:24 Sessions 1 Manual Loads 0 Difficulty Rogue Special Mode None Game No. 166 Rogue 166 Adventurer 0 Explorer 0 Win Type - Total 0 Types 0/0/0/0/0/0/0 Lore% 31 Gallery% 48 Achievement% 34 Wizard Run 0 Options --------- ASCII 0 Keyboard 0 Movement Mouse Keybinds 0 Fullscreen 1 Font 18/SmallcapsGlow Map View 76x50 Tactical HUD 1 Map Filters NONE Filters NONE Steam 1 RUN: 780a8d95-04dd-4580-b1a9-c159b1e55a37